{"text_format":"1","workbook":"xlsx","n_sheets":2,"sheets":["旅行命令上申書（国内旅行","旅行報告書兼精算依頼書（国内旅行"],"not_rendered":{"charts":0,"images":0,"macros":0,"external_links":0,"defined_names":1,"comments":1,"pivot_tables":0},"unopened":[],"bounds":{"document_bytes":16777216,"sheet_cells":100000,"rows_first":2000,"rows_last":500,"rows_between":2000,"halvings":0,"cell_chars":16384,"cell_head_chars":4096},"cells_cut":0,"cells_raw":0,"read":"whole","date_system":"1900"}

{"sheet":"旅行命令上申書（国内旅行","index":0,"n_rows":65,"n_cols":71,"rows_kept":65,"cut":false,"hidden":false,"merged":[[50,8,51,32],[64,58,64,65],[48,0,49,5],[50,0,51,5],[52,0,55,5],[52,6,55,32],[46,22,46,23],[47,6,47,7],[47,8,47,13],[47,14,47,15],[47,16,47,21],[47,22,47,23],[45,0,47,5],[45,8,45,13],[45,16,45,21],[46,6,46,7],[46,8,46,13],[46,14,46,15],[46,16,46,21],[48,8,49,32],[47,24,47,32],[46,24,46,32],[42,6,42,13],[42,14,42,32],[43,6,43,13],[43,14,43,32],[44,6,44,13],[44,14,44,32],[34,54,34,65],[36,0,37,4],[36,5,37,10],[39,0,44,5],[39,6,39,13],[39,14,39,32],[40,6,40,13],[40,14,40,32],[41,6,41,13],[41,14,41,32],[32,47,32,52],[32,56,32,60],[33,7,33,13],[33,15,33,21],[33,23,33,28],[33,31,33,37],[33,39,33,45],[33,47,33,52],[32,0,33,5],[32,7,32,13],[32,15,32,21],[32,23,32,28],[32,31,32,37],[32,39,32,45],[29,37,29,48],[29,49,30,65],[30,30,30,35],[30,37,30,41],[30,42,30,44],[30,46,30,48],[27,49,28,65],[28,30,28,35],[28,37,28,41],[28,42,28,44],[28,46,28,48],[27,37,27,48],[29,0,30,0],[29,1,30,5],[29,6,30,18],[29,19,30,29],[29,30,29,35],[27,0,28,0],[27,1,28,5],[27,6,28,18],[27,19,28,29],[27,30,27,35],[25,49,26,65],[26,30,26,35],[26,37,26,41],[26,42,26,44],[26,46,26,48],[23,49,24,65],[24,30,24,35],[24,37,24,41],[24,42,24,44],[24,46,24,48],[25,0,26,0],[25,1,26,5],[25,6,26,18],[25,19,26,29],[25,30,25,35],[22,42,22,44],[22,46,22,48],[23,0,24,0],[23,1,24,5],[23,6,24,18],[23,19,24,29],[23,30,23,35],[23,37,23,48],[25,37,25,48],[19,49,20,65],[21,0,22,0],[21,1,22,5],[21,6,22,18],[21,19,22,29],[21,30,21,35],[21,37,21,48],[21,49,22,65],[22,30,22,35],[22,37,22,41],[19,0,20,0],[19,1,20,5],[19,6,20,18],[19,19,20,29],[19,30,20,36],[19,37,20,48],[12,39,17,65],[14,0,15,5],[14,6,15,14],[14,15,15,20],[14,21,14,30],[14,31,14,32],[15,21,15,30],[15,31,15,32],[12,0,13,5],[12,6,13,14],[12,15,13,16],[12,17,13,25],[12,26,13,27],[12,28,13,30],[16,0,17,5],[16,6,17,14],[16,15,17,20],[16,21,16,30],[16,31,16,32],[17,21,17,30],[17,31,17,32],[12,31,13,32],[12,33,17,38],[5,56,6,65],[7,0,8,5],[7,6,7,32],[7,33,8,38],[7,39,8,65],[8,6,8,12],[8,13,8,32],[0,54,0,57],[0,58,0,61],[0,62,0,65],[1,43,3,47],[1,50,3,53],[1,54,3,57],[1,58,3,61],[1,62,3,65],[0,0,1,4],[0,5,1,10],[0,20,2,40],[0,43,0,47],[0,49,3,49],[0,50,0,53]]}
["教 職 員",null,null,null,null,"国内旅行",null,null,null,null,null,null,null,null,null,null,null,null,null,null,"旅　行　命　令　上　申　書",null,null,null,null,null,null,null,null,null,null,null,null,null,null,null,null,null,null,null,null,null,null,"旅行命令権者",null,null,null,null,null,"確認欄","課長",null,null,null,"課長代理",null,null,null,"係長",null,null,null,"係員"]
[]
[]
[]
[]
["公立大学法人大阪 理事長　様",null,null,null,null,null,null,null,null,null,null,null,null,null,null,null,null,null,null,null,null,null,null,null,null,null,null,null,null,null,null,null,null,null,null,null,null,null,null,null,null,null,null,null,null,null,null,null,null,null,null,null,null,null,null,null,"年　　月　　日"]
[]
["所　　属",null,null,null,null,null,null,null,null,null,null,null,null,null,null,null,null,null,null,null,null,null,null,null,null,null,null,null,null,null,null,null,null,"旅行者氏名"]
[null,null,null,null,null,null,"（役　職）"]
[]
[null,"次のとおり旅行命令されるよう上申します。"]
[]
["旅行期間",null,null,null,null,null,null,null,null,null,null,null,null,null,null,"から",null,null,null,null,null,null,null,null,null,null,"まで",null,{"$f":"IF(R13-G13>0,R13-G13+1,IF(R13-G13=0,R13-G13+1,\"\"))","v":1},null,null,"日間"]
[]
["出 発 地",null,null,null,null,null,null,null,null,null,null,null,null,null,null,"最寄駅又は\nバス停※1",null,null,null,null,null,null,null,null,null,null,null,null,null,null,null,"線"]
[null,null,null,null,null,null,null,null,null,null,null,null,null,null,null,null,null,null,null,null,null,null,null,null,null,null,null,null,null,null,null,"駅"]
["帰 着 地",null,null,null,null,null,null,null,null,null,null,null,null,null,null,"最寄駅又は\nバス停※1",null,null,null,null,null,null,null,null,null,null,null,null,null,null,null,"線"]
[null,null,null,null,null,null,null,null,null,null,null,null,null,null,null,null,null,null,null,null,null,null,null,null,null,null,null,null,null,null,null,"駅"]
[]
[null,"年月日※2",null,null,null,null,"用務先名称",null,null,null,null,null,null,null,null,null,null,null,null,"用務先住所",null,null,null,null,null,null,null,null,null,null,"最寄駅又は\nバス停※1",null,null,null,null,null,null,"宿泊先名称",null,null,null,null,null,null,null,null,null,null,null,"用務内容詳細"]
[]
[1,null,null,null,null,null,null,null,null,null,null,null,null,null,null,null,null,null,null,null,null,null,null,null,null,null,null,null,null,null,null,null,null,null,null,null,"線"]
[null,null,null,null,null,null,null,null,null,null,null,null,null,null,null,null,null,null,null,null,null,null,null,null,null,null,null,null,null,null,null,null,null,null,null,null,"駅","用務時刻※3",null,null,null,null,"：",null,null,"～","："]
[2,null,null,null,null,null,null,null,null,null,null,null,null,null,null,null,null,null,null,null,null,null,null,null,null,null,null,null,null,null,null,null,null,null,null,null,"線"]
[null,null,null,null,null,null,null,null,null,null,null,null,null,null,null,null,null,null,null,null,null,null,null,null,null,null,null,null,null,null,null,null,null,null,null,null,"駅","用務時刻※3",null,null,null,null,"：",null,null,"～","："]
[3,null,null,null,null,null,null,null,null,null,null,null,null,null,null,null,null,null,null,null,null,null,null,null,null,null,null,null,null,null,null,null,null,null,null,null,"線"]
[null,null,null,null,null,null,null,null,null,null,null,null,null,null,null,null,null,null,null,null,null,null,null,null,null,null,null,null,null,null,null,null,null,null,null,null,"駅","用務時刻※3",null,null,null,null,"：",null,null,"～","："]
[4,null,null,null,null,null,null,null,null,null,null,null,null,null,null,null,null,null,null,null,null,null,null,null,null,null,null,null,null,null,null,null,null,null,null,null,"線"]
[null,null,null,null,null,null,null,null,null,null,null,null,null,null,null,null,null,null,null,null,null,null,null,null,null,null,null,null,null,null,null,null,null,null,null,null,"駅","用務時刻※3",null,null,null,null,"：",null,null,"～","："]
[5,null,null,null,null,null,null,null,null,null,null,null,null,null,null,null,null,null,null,null,null,null,null,null,null,null,null,null,null,null,null,null,null,null,null,null,"線"]
[null,null,null,null,null,null,null,null,null,null,null,null,null,null,null,null,null,null,null,null,null,null,null,null,null,null,null,null,null,null,null,null,null,null,null,null,"駅","用務時刻※3",null,null,null,null,"：",null,null,"～","："]
[]
["通勤定期区間\n※1",null,null,null,null,null,"①",null,null,null,null,null,null,null,"～",null,null,null,null,null,null,null,"(",null,null,null,null,null,null,")","③",null,null,null,null,null,null,null,"～",null,null,null,null,null,null,null,"(",null,null,null,null,null,null,")",null,null,"定期券なし",null,null,null,null,null,null,null,null,null,false]
[null,null,null,null,null,null,"②",null,null,null,null,null,null,null,"～",null,null,null,null,null,null,null,"(",null,null,null,null,null,null,")","④",null,null,null,null,null,null,null,"～",null,null,null,null,null,null,null,"(",null,null,null,null,null,null,")","※①が自宅側となるように記入"]
[null,null,null,null,null,null,null,null,null,null,null,null,null,null,null,null,null,null,null,null,null,null,null,null,null,null,null,null,null,null,null,null,null,null,null,null,null,null,null,null,null,null,null,null,null,null,null,null,null,null,null,null,null,null,"裏面も記入してください。"]
[]
["教 職 員",null,null,null,null,"国内旅行"]
[]
[]
["財　　源",null,null,null,null,null,"財源名称",null,null,null,null,null,null,null,"(選択してください)"]
[null,null,null,null,null,null,{"$f":"IF(OR(O40=\"基盤研究費\",O40=\"自己負担（精算なし）\",O40=\"\"),\"\",IF(O40=\"大学運営経費\",\"予算名称\",IF(COUNTIF(O40,\"*科研費*\"),\"種目\",IF(O40=\"先方負担\",\"負担種別（全額/一部）\",IF(O40=\"その他\",\"詳細\",\"資金(ﾌﾟﾛｼﾞｪｸﾄ)名称\")))))","v":"資金(ﾌﾟﾛｼﾞｪｸﾄ)名称"}]
[null,null,null,null,null,null,{"$f":"+IF(OR(O40=\"基盤研究費\",O40=\"大学運営経費\",O40=\"自己負担（精算なし）\",O40=\"その他\",O40=\"\"),\"\",IF(O40=\"先方負担\",\"先方負担先名\",IF(COUNTIF(O40,\"*科研費*\"),\"研究代表者名\",\"経費区分（直接/間接）\")))","v":"経費区分（直接/間接）"}]
[null,null,null,null,null,null,{"$f":"+IF(OR(O40=\"基盤研究費\",O40=\"大学運営経費\",O40=\"自己負担（精算なし）\",O40=\"その他\",O40=\"\"),\"\",IF(O40=\"先方負担\",\"先方負担内容\",IF(COUNTIF(O40,\"*科研費*\"),\"所管（ﾌﾟﾛｼﾞｪｸﾄ）名称\",\"ﾌﾟﾛｼﾞｪｸﾄNo.(ｺｰﾄﾞ)\")))","v":"ﾌﾟﾛｼﾞｪｸﾄNo.(ｺｰﾄﾞ)"}]
[null,null,null,null,null,null,{"$f":"IF(COUNTIF(O40,\"*科研費*\"),\"ﾌﾟﾛｼﾞｪｸﾄNo.(ｺｰﾄﾞ)\",\"\")","v":""}]
[null,null,null,null,null,null,"備考"]
["法人カード",null,null,null,null,null,null,null,"利用予定あり",null,null,null,null,null,null,null,"利用予定なし",null,null,null,null,null,null,null,null,null,null,null,null,null,null,null,null,null,null,null,null,null,null,null,null,null,null,null,null,null,null,null,null,null,null,null,null,null,null,null,null,null,null,null,null,null,null,null,null,null,false,null,false]
[null,null,null,null,null,null,null,null,"航空機料金",null,null,null,null,null,null,null,"鉄道料金",null,null,null,null,null,null,null,"その他交通費(　　　)",null,null,null,null,null,null,null,null,null,null,null,null,null,null,null,null,null,null,null,null,null,null,null,null,null,null,null,null,null,null,null,null,null,null,null,null,null,null,null,null,null,false,null,false,null,false]
[null,null,null,null,null,null,null,null,"宿泊料",null,null,null,null,null,null,null,"参加費",null,null,null,null,null,null,null,"その他(　　　　　　)",null,null,null,null,null,null,null,null,null,null,null,null,null,null,null,null,null,null,null,null,null,null,null,null,null,null,null,null,null,null,null,null,null,null,null,null,null,null,null,null,null,false,null,false,null,false]
["参　加　費",null,null,null,null,null,null,null,"参加費の精算を希望する"]
[null,null,null,null,null,null,null,null,null,null,null,null,null,null,null,null,null,null,null,null,null,null,null,null,null,null,null,null,null,null,null,null,null,null,null,null,null,null,null,null,null,null,null,null,null,null,null,null,null,null,null,null,null,null,null,null,null,null,null,null,null,null,null,null,null,null,false]
["仮 払 申 請",null,null,null,null,null,null,null,"仮払を希望する※4"]
[]
["備　　考※5"]
[]
[]
[]
[]
["◆記入に関する注意事項"]
[]
["※1 最寄駅及び定期区間は「鉄道会社／駅名」又は「バス会社／バス停名」を記入してください。"]
["※2 旅行期間中の休日に業務を行う場合は、休日振替又は超過勤務の手続きが必要です。"]
["　「休日振替申請書」 又は 「超過勤務（休日）命令／夜間勤務申請簿」を必ず提出してください。ただし、休日における終日移動の場合は不要です。"]
["※3 前泊時は用務開始時刻（到着しなければならない時刻）、後泊時は用務終了時刻（現地を発てる時刻）を記入してください。"]
["※4 仮払いを希望する場合は、原則として、仮払い額（事前算出額）と仮払い精算額（事後の確定額）が同額となるようにしてください。"]
["※5 都市間を結ぶ高速バス等（空港連絡バス含む）を利用する場合は、備考欄に記入してください。",null,null,null,null,null,null,null,null,null,null,null,null,null,null,null,null,null,null,null,null,null,null,null,null,null,null,null,null,null,null,null,null,null,null,null,null,null,null,null,null,null,null,null,null,null,null,null,null,null,null,null,null,null,null,null,null,null,"2022年4月1日版"]

{"sheet":"旅行報告書兼精算依頼書（国内旅行","index":1,"n_rows":69,"n_cols":63,"rows_kept":69,"cut":false,"hidden":false,"merged":[[25,49,26,65],[26,6,26,9],[26,11,26,17],[26,30,26,35],[26,37,26,41],[26,42,26,44],[23,49,24,65],[24,6,24,9],[24,11,24,17],[24,30,24,35],[24,37,24,41],[24,42,24,44],[24,46,24,48],[23,6,23,18],[23,19,24,29],[23,30,23,35],[23,37,23,48],[26,46,26,48],[0,0,1,4],[0,5,1,10],[0,17,2,42],[0,43,0,47],[0,49,3,49],[0,50,0,53],[0,54,0,57],[0,58,0,61],[0,62,0,65],[1,43,3,47],[1,50,3,53],[1,54,3,57],[1,58,3,61],[1,62,3,65],[5,56,6,65],[7,0,8,5],[7,6,7,32],[7,33,8,38],[7,39,8,65],[12,39,12,40],[14,0,15,5],[14,6,15,14],[14,15,15,20],[14,21,14,30],[14,31,14,32],[15,21,15,30],[15,31,15,32],[12,33,17,38],[8,6,8,12],[8,13,8,32],[12,41,12,46],[12,47,12,48],[12,49,12,54],[13,39,17,65],[16,0,17,5],[16,6,17,14],[16,15,17,20],[16,21,16,30],[16,31,16,32],[17,21,17,30],[17,31,17,32],[12,0,13,5],[12,6,13,14],[12,15,13,16],[12,17,13,25],[12,26,13,27],[12,28,13,30],[12,31,13,32],[19,0,20,0],[19,1,20,5],[19,6,20,18],[19,19,20,29],[19,30,20,36],[19,37,20,48],[19,49,20,65],[21,0,22,0],[21,1,22,5],[21,6,21,18],[21,19,22,29],[21,30,21,35],[21,37,21,48],[21,49,22,65],[22,6,22,9],[22,11,22,17],[22,30,22,35],[22,37,22,41],[22,42,22,44],[22,46,22,48],[25,0,26,0],[25,1,26,5],[25,6,25,18],[25,19,26,29],[25,30,25,35],[25,37,25,48],[23,0,24,0],[23,1,24,5],[27,0,28,0],[27,1,28,5],[27,6,27,18],[27,19,28,29],[27,30,27,35],[27,37,27,48],[27,49,28,65],[28,6,28,9],[28,11,28,17],[28,30,28,35],[28,37,28,41],[28,42,28,44],[28,46,28,48],[29,0,30,0],[29,1,30,5],[29,6,29,18],[29,19,30,29],[29,30,29,35],[29,37,29,48],[29,49,30,65],[30,6,30,9],[30,11,30,17],[30,30,30,35],[30,37,30,41],[30,42,30,44],[30,46,30,48],[32,0,33,5],[32,7,32,13],[32,15,32,21],[32,23,32,28],[32,31,32,37],[32,39,32,45],[32,47,32,52],[32,56,32,60],[33,7,33,13],[33,15,33,21],[33,23,33,28],[33,31,33,37],[33,39,33,45],[33,47,33,52],[68,58,68,65],[48,0,49,5],[50,0,51,5],[50,8,50,32],[51,8,51,32],[52,0,55,5],[52,6,55,32],[34,54,34,65],[36,0,37,4],[36,5,37,10],[39,0,44,5],[39,6,39,13],[39,14,39,32],[40,6,40,13],[40,14,40,32],[41,6,41,13],[41,14,41,32],[42,6,42,13],[42,14,42,32],[43,6,43,13],[43,14,43,32],[44,6,44,13],[44,14,44,32],[45,0,47,5],[50,6,50,7],[51,6,51,7],[45,8,45,13],[45,16,45,21],[46,6,46,7],[46,8,46,13],[46,14,46,15],[46,16,46,21],[46,22,46,23],[47,6,47,7],[47,8,47,13],[47,14,47,15],[47,16,47,21],[47,22,47,23],[48,8,49,32],[46,24,46,32],[47,24,47,32]]}
["教 職 員",null,null,null,null,"国内旅行",null,null,null,null,null,null,null,null,null,null,null,"旅 行 報 告 書 兼 精 算 依 頼 書",null,null,null,null,null,null,null,null,null,null,null,null,null,null,null,null,null,null,null,null,null,null,null,null,null,"旅行命令権者",null,null,null,null,null,"確認欄","課長",null,null,null,"課長代理",null,null,null,"係長",null,null,null,"係員"]
[]
[]
[]
[]
["公立大学法人大阪 理事長　様",null,null,null,null,null,null,null,null,null,null,null,null,null,null,null,null,null,null,null,null,null,null,null,null,null,null,null,null,null,null,null,null,null,null,null,null,null,null,null,null,null,null,null,null,null,null,null,null,null,null,null,null,null,null,null,"年　　月　　日"]
[]
["所　　属",null,null,null,null,null,{"$f":"IF('旅行命令上申書（国内旅行'!G8:AG8=\"\",\"\",'旅行命令上申書（国内旅行'!G8:AG8)","v":""},null,null,null,null,null,null,null,null,null,null,null,null,null,null,null,null,null,null,null,null,null,null,null,null,null,null,"旅行者氏名",null,null,null,null,null,{"$f":"IF('旅行命令上申書（国内旅行'!AN8:BN9=\"\",\"\",'旅行命令上申書（国内旅行'!AN8:BN9)","v":""}]
[null,null,null,null,null,null,"（役　職）",null,null,null,null,null,null,{"$f":"IF('旅行命令上申書（国内旅行'!N9:AG9=\"\",\"\",'旅行命令上申書（国内旅行'!N9:AG9)","v":""}]
[]
[null,"次のとおり旅行したことを報告し、旅費の精算を依頼します。"]
[]
["旅行期間",null,null,null,null,null,{"$f":"IF('旅行命令上申書（国内旅行'!G13:O14=\"\",\"\",'旅行命令上申書（国内旅行'!G13:O14)","v":""},null,null,null,null,null,null,null,null,"から",null,{"$f":"IF('旅行命令上申書（国内旅行'!R13:Z14=\"\",\"\",'旅行命令上申書（国内旅行'!R13:Z14)","v":""},null,null,null,null,null,null,null,null,"まで",null,{"$f":"IF('旅行命令上申書（国内旅行'!AC13:AE14=\"\",\"\",'旅行命令上申書（国内旅行'!AC13:AE14)","v":1},null,null,"日間",null,"上申書からの\n変更内容※2",null,null,null,null,null,null,null,"変更あり",null,null,null,null,null,null,null,"変更なし"]
[]
["出 発 地",null,null,null,null,null,{"$f":"IF('旅行命令上申書（国内旅行'!G15:O16=\"\",\"\",'旅行命令上申書（国内旅行'!G15:O16)","v":""},null,null,null,null,null,null,null,null,"最寄駅又は\nバス停※1",null,null,null,null,null,{"$f":"IF('旅行命令上申書（国内旅行'!V15:AE15=\"\",\"\",'旅行命令上申書（国内旅行'!V15:AE15)","v":""},null,null,null,null,null,null,null,null,null,"線"]
[null,null,null,null,null,null,null,null,null,null,null,null,null,null,null,null,null,null,null,null,null,{"$f":"IF('旅行命令上申書（国内旅行'!V16:AE16=\"\",\"\",'旅行命令上申書（国内旅行'!V16:AE16)","v":""},null,null,null,null,null,null,null,null,null,"駅"]
["帰 着 地",null,null,null,null,null,{"$f":"IF('旅行命令上申書（国内旅行'!G17:O18=\"\",\"\",'旅行命令上申書（国内旅行'!G17:O18)","v":""},null,null,null,null,null,null,null,null,"最寄駅又は\nバス停※1",null,null,null,null,null,{"$f":"IF('旅行命令上申書（国内旅行'!V17:AE17=\"\",\"\",'旅行命令上申書（国内旅行'!V17:AE17)","v":""},null,null,null,null,null,null,null,null,null,"線"]
[null,null,null,null,null,null,null,null,null,null,null,null,null,null,null,null,null,null,null,null,null,{"$f":"IF('旅行命令上申書（国内旅行'!V18:AE18=\"\",\"\",'旅行命令上申書（国内旅行'!V18:AE18)","v":""},null,null,null,null,null,null,null,null,null,"駅"]
[]
[null,"年月日※3",null,null,null,null,"用務先名称",null,null,null,null,null,null,null,null,null,null,null,null,"用務先住所",null,null,null,null,null,null,null,null,null,null,"最寄駅又は\nバス停※1",null,null,null,null,null,null,"宿泊先名称",null,null,null,null,null,null,null,null,null,null,null,"用務実施内容（報告）"]
[]
[1,{"$f":"IF('旅行命令上申書（国内旅行'!B22:F23=\"\",\"\",'旅行命令上申書（国内旅行'!B22:F23)","v":""},null,null,null,null,{"$f":"IF('旅行命令上申書（国内旅行'!G22:S23=\"\",\"\",'旅行命令上申書（国内旅行'!G22:S23)","v":""},null,null,null,null,null,null,null,null,null,null,null,null,{"$f":"IF('旅行命令上申書（国内旅行'!T22:AD23=\"\",\"\",'旅行命令上申書（国内旅行'!T22:AD23)","v":""},null,null,null,null,null,null,null,null,null,null,{"$f":"IF('旅行命令上申書（国内旅行'!AE22:AJ22=\"\",\"\",'旅行命令上申書（国内旅行'!AE22:AJ22)","v":""},null,null,null,null,null,"線",{"$f":"IF('旅行命令上申書（国内旅行'!AL22:AW22=\"\",\"\",'旅行命令上申書（国内旅行'!AL22:AW22)","v":""},null,null,null,null,null,null,null,null,null,null,null,{"$f":"IF('旅行命令上申書（国内旅行'!AX22:BN23=\"\",\"\",'旅行命令上申書（国内旅行'!AX22:BN23)","v":""}]
[null,null,null,null,null,null,"応接者等",null,null,null,"（",null,null,null,null,null,null,null,"）",null,null,null,null,null,null,null,null,null,null,null,{"$f":"IF('旅行命令上申書（国内旅行'!AE23:AJ23=\"\",\"\",'旅行命令上申書（国内旅行'!AE23:AJ23)","v":""},null,null,null,null,null,"駅","用務時刻※4",null,null,null,null,{"$f":"IF('旅行命令上申書（国内旅行'!AQ23:AS23=\"\",\"\",'旅行命令上申書（国内旅行'!AQ23:AS23)","v":"："},null,null,"～",{"$f":"IF('旅行命令上申書（国内旅行'!AU23:AV23=\"\",\"\",'旅行命令上申書（国内旅行'!AU23:AV23)","v":"："}]
[2,{"$f":"IF('旅行命令上申書（国内旅行'!B24:F25=\"\",\"\",'旅行命令上申書（国内旅行'!B24:F25)","v":""},null,null,null,null,{"$f":"IF('旅行命令上申書（国内旅行'!G24:S25=\"\",\"\",'旅行命令上申書（国内旅行'!G24:S25)","v":""},null,null,null,null,null,null,null,null,null,null,null,null,{"$f":"IF('旅行命令上申書（国内旅行'!T24:AD25=\"\",\"\",'旅行命令上申書（国内旅行'!T24:AD25)","v":""},null,null,null,null,null,null,null,null,null,null,{"$f":"IF('旅行命令上申書（国内旅行'!AE24:AJ24=\"\",\"\",'旅行命令上申書（国内旅行'!AE24:AJ24)","v":""},null,null,null,null,null,"線",{"$f":"IF('旅行命令上申書（国内旅行'!AL24:AW24=\"\",\"\",'旅行命令上申書（国内旅行'!AL24:AW24)","v":""},null,null,null,null,null,null,null,null,null,null,null,{"$f":"IF('旅行命令上申書（国内旅行'!AX24:BN25=\"\",\"\",'旅行命令上申書（国内旅行'!AX24:BN25)","v":""}]
[null,null,null,null,null,null,"応接者等",null,null,null,"（",null,null,null,null,null,null,null,"）",null,null,null,null,null,null,null,null,null,null,null,{"$f":"IF('旅行命令上申書（国内旅行'!AE25:AJ25=\"\",\"\",'旅行命令上申書（国内旅行'!AE25:AJ25)","v":""},null,null,null,null,null,"駅","用務時刻※4",null,null,null,null,{"$f":"IF('旅行命令上申書（国内旅行'!AQ25:AS25=\"\",\"\",'旅行命令上申書（国内旅行'!AQ25:AS25)","v":"："},null,null,"～",{"$f":"IF('旅行命令上申書（国内旅行'!AU25:AV25=\"\",\"\",'旅行命令上申書（国内旅行'!AU25:AV25)","v":"："}]
[3,{"$f":"IF('旅行命令上申書（国内旅行'!B26:F27=\"\",\"\",'旅行命令上申書（国内旅行'!B26:F27)","v":""},null,null,null,null,{"$f":"IF('旅行命令上申書（国内旅行'!G26:S27=\"\",\"\",'旅行命令上申書（国内旅行'!G26:S27)","v":""},null,null,null,null,null,null,null,null,null,null,null,null,{"$f":"IF('旅行命令上申書（国内旅行'!T26:AD27=\"\",\"\",'旅行命令上申書（国内旅行'!T26:AD27)","v":""},null,null,null,null,null,null,null,null,null,null,{"$f":"IF('旅行命令上申書（国内旅行'!AE26:AJ26=\"\",\"\",'旅行命令上申書（国内旅行'!AE26:AJ26)","v":""},null,null,null,null,null,"線",{"$f":"IF('旅行命令上申書（国内旅行'!AL26:AW26=\"\",\"\",'旅行命令上申書（国内旅行'!AL26:AW26)","v":""},null,null,null,null,null,null,null,null,null,null,null,{"$f":"IF('旅行命令上申書（国内旅行'!AX26:BN27=\"\",\"\",'旅行命令上申書（国内旅行'!AX26:BN27)","v":""}]
[null,null,null,null,null,null,"応接者等",null,null,null,"（",null,null,null,null,null,null,null,"）",null,null,null,null,null,null,null,null,null,null,null,{"$f":"IF('旅行命令上申書（国内旅行'!AE27:AJ27=\"\",\"\",'旅行命令上申書（国内旅行'!AE27:AJ27)","v":""},null,null,null,null,null,"駅","用務時刻※4",null,null,null,null,{"$f":"IF('旅行命令上申書（国内旅行'!AQ27:AS27=\"\",\"\",'旅行命令上申書（国内旅行'!AQ27:AS27)","v":"："},null,null,"～",{"$f":"IF('旅行命令上申書（国内旅行'!AU27:AV27=\"\",\"\",'旅行命令上申書（国内旅行'!AU27:AV27)","v":"："}]
[4,{"$f":"IF('旅行命令上申書（国内旅行'!B28:F29=\"\",\"\",'旅行命令上申書（国内旅行'!B28:F29)","v":""},null,null,null,null,{"$f":"IF('旅行命令上申書（国内旅行'!G28:S29=\"\",\"\",'旅行命令上申書（国内旅行'!G28:S29)","v":""},null,null,null,null,null,null,null,null,null,null,null,null,{"$f":"IF('旅行命令上申書（国内旅行'!T28:AD29=\"\",\"\",'旅行命令上申書（国内旅行'!T28:AD29)","v":""},null,null,null,null,null,null,null,null,null,null,{"$f":"IF('旅行命令上申書（国内旅行'!AE28:AJ28=\"\",\"\",'旅行命令上申書（国内旅行'!AE28:AJ28)","v":""},null,null,null,null,null,"線",{"$f":"IF('旅行命令上申書（国内旅行'!AL28:AW28=\"\",\"\",'旅行命令上申書（国内旅行'!AL28:AW28)","v":""},null,null,null,null,null,null,null,null,null,null,null,{"$f":"IF('旅行命令上申書（国内旅行'!AX28:BN29=\"\",\"\",'旅行命令上申書（国内旅行'!AX28:BN29)","v":""}]
[null,null,null,null,null,null,"応接者等",null,null,null,"（",null,null,null,null,null,null,null,"）",null,null,null,null,null,null,null,null,null,null,null,{"$f":"IF('旅行命令上申書（国内旅行'!AE29:AJ29=\"\",\"\",'旅行命令上申書（国内旅行'!AE29:AJ29)","v":""},null,null,null,null,null,"駅","用務時刻※4",null,null,null,null,{"$f":"IF('旅行命令上申書（国内旅行'!AQ29:AS29=\"\",\"\",'旅行命令上申書（国内旅行'!AQ29:AS29)","v":"："},null,null,"～",{"$f":"IF('旅行命令上申書（国内旅行'!AU29:AV29=\"\",\"\",'旅行命令上申書（国内旅行'!AU29:AV29)","v":"："}]
[5,{"$f":"IF('旅行命令上申書（国内旅行'!B30:F31=\"\",\"\",'旅行命令上申書（国内旅行'!B30:F31)","v":""},null,null,null,null,{"$f":"IF('旅行命令上申書（国内旅行'!G30:S31=\"\",\"\",'旅行命令上申書（国内旅行'!G30:S31)","v":""},null,null,null,null,null,null,null,null,null,null,null,null,{"$f":"IF('旅行命令上申書（国内旅行'!T30:AD31=\"\",\"\",'旅行命令上申書（国内旅行'!T30:AD31)","v":""},null,null,null,null,null,null,null,null,null,null,{"$f":"IF('旅行命令上申書（国内旅行'!AE30:AJ30=\"\",\"\",'旅行命令上申書（国内旅行'!AE30:AJ30)","v":""},null,null,null,null,null,"線",{"$f":"IF('旅行命令上申書（国内旅行'!AL30:AW30=\"\",\"\",'旅行命令上申書（国内旅行'!AL30:AW30)","v":""},null,null,null,null,null,null,null,null,null,null,null,{"$f":"IF('旅行命令上申書（国内旅行'!AX30:BN31=\"\",\"\",'旅行命令上申書（国内旅行'!AX30:BN31)","v":""}]
[null,null,null,null,null,null,"応接者等",null,null,null,"（",null,null,null,null,null,null,null,"）",null,null,null,null,null,null,null,null,null,null,null,{"$f":"IF('旅行命令上申書（国内旅行'!AE31:AJ31=\"\",\"\",'旅行命令上申書（国内旅行'!AE31:AJ31)","v":""},null,null,null,null,null,"駅","用務時刻※4",null,null,null,null,{"$f":"IF('旅行命令上申書（国内旅行'!AQ31:AS31=\"\",\"\",'旅行命令上申書（国内旅行'!AQ31:AS31)","v":"："},null,null,"～",{"$f":"IF('旅行命令上申書（国内旅行'!AU31:AV31=\"\",\"\",'旅行命令上申書（国内旅行'!AU31:AV31)","v":"："}]
[]
["通勤定期区間\n※1",null,null,null,null,null,"①",{"$f":"IF('旅行命令上申書（国内旅行'!H33:N33=\"\",\"\",'旅行命令上申書（国内旅行'!H33:N33)","v":""},null,null,null,null,null,null,"～",{"$f":"IF('旅行命令上申書（国内旅行'!P33:V33=\"\",\"\",'旅行命令上申書（国内旅行'!P33:V33)","v":""},null,null,null,null,null,null,"(",{"$f":"IF('旅行命令上申書（国内旅行'!X33:AC33=\"\",\"\",'旅行命令上申書（国内旅行'!X33:AC33)","v":""},null,null,null,null,null,")","③",{"$f":"IF('旅行命令上申書（国内旅行'!AF33:AL33=\"\",\"\",'旅行命令上申書（国内旅行'!AF33:AL33)","v":""},null,null,null,null,null,null,"～",{"$f":"IF('旅行命令上申書（国内旅行'!AN33:AT33=\"\",\"\",'旅行命令上申書（国内旅行'!AN33:AT33)","v":""},null,null,null,null,null,null,"(",{"$f":"IF('旅行命令上申書（国内旅行'!AV33:BA33=\"\",\"\",'旅行命令上申書（国内旅行'!AV33:BA33)","v":""},null,null,null,null,null,")",null,null,"定期券なし"]
[null,null,null,null,null,null,"②",{"$f":"IF('旅行命令上申書（国内旅行'!H34:N34=\"\",\"\",'旅行命令上申書（国内旅行'!H34:N34)","v":""},null,null,null,null,null,null,"～",{"$f":"IF('旅行命令上申書（国内旅行'!P34:V34=\"\",\"\",'旅行命令上申書（国内旅行'!P34:V34)","v":""},null,null,null,null,null,null,"(",{"$f":"IF('旅行命令上申書（国内旅行'!X34:AC34=\"\",\"\",'旅行命令上申書（国内旅行'!X34:AC34)","v":""},null,null,null,null,null,")","④",{"$f":"IF('旅行命令上申書（国内旅行'!AF34:AL34=\"\",\"\",'旅行命令上申書（国内旅行'!AF34:AL34)","v":""},null,null,null,null,null,null,"～",{"$f":"IF('旅行命令上申書（国内旅行'!AN34:AT34=\"\",\"\",'旅行命令上申書（国内旅行'!AN34:AT34)","v":""},null,null,null,null,null,null,"(",{"$f":"IF('旅行命令上申書（国内旅行'!AV34:BA34=\"\",\"\",'旅行命令上申書（国内旅行'!AV34:BA34)","v":""},null,null,null,null,null,")","※①が自宅側となるように記入"]
[null,null,null,null,null,null,null,null,null,null,null,null,null,null,null,null,null,null,null,null,null,null,null,null,null,null,null,null,null,null,null,null,null,null,null,null,null,null,null,null,null,null,null,null,null,null,null,null,null,null,null,null,null,null,"裏面も記入してください。"]
[]
["教 職 員",null,null,null,null,"国内旅行"]
[]
[]
["財　　源",null,null,null,null,null,"財源名称",null,null,null,null,null,null,null,{"$f":"IF('旅行命令上申書（国内旅行'!O40:AG40=\"\",\"\",'旅行命令上申書（国内旅行'!O40:AG40)","v":"(選択してください)"}]
[null,null,null,null,null,null,{"$f":"IF(OR(O40=\"基盤研究費\",O40=\"自己負担（精算なし）\",O40=\"\"),\"\",IF(O40=\"大学運営経費\",\"予算名称\",IF(COUNTIF(O40,\"*科研費*\"),\"種目\",IF(O40=\"先方負担\",\"負担種別（全額/一部）\",IF(O40=\"その他\",\"詳細\",\"資金(ﾌﾟﾛｼﾞｪｸﾄ)名称\")))))","v":"資金(ﾌﾟﾛｼﾞｪｸﾄ)名称"},null,null,null,null,null,null,null,{"$f":"IF('旅行命令上申書（国内旅行'!O41:AG41=\"\",\"\",'旅行命令上申書（国内旅行'!O41:AG41)","v":""}]
[null,null,null,null,null,null,{"$f":"+IF(OR(O40=\"基盤研究費\",O40=\"大学運営経費\",O40=\"自己負担（精算なし）\",O40=\"その他\",O40=\"\"),\"\",IF(O40=\"先方負担\",\"先方負担先名\",IF(COUNTIF(O40,\"*科研費*\"),\"研究代表者名\",\"経費区分（直接/間接）\")))","v":"経費区分（直接/間接）"},null,null,null,null,null,null,null,{"$f":"IF('旅行命令上申書（国内旅行'!O42:AG42=\"\",\"\",'旅行命令上申書（国内旅行'!O42:AG42)","v":""}]
[null,null,null,null,null,null,{"$f":"+IF(OR(O40=\"基盤研究費\",O40=\"大学運営経費\",O40=\"自己負担（精算なし）\",O40=\"その他\",O40=\"\"),\"\",IF(O40=\"先方負担\",\"先方負担内容\",IF(COUNTIF(O40,\"*科研費*\"),\"所管（ﾌﾟﾛｼﾞｪｸﾄ）名称\",\"ﾌﾟﾛｼﾞｪｸﾄNo.(ｺｰﾄﾞ)\")))","v":"ﾌﾟﾛｼﾞｪｸﾄNo.(ｺｰﾄﾞ)"},null,null,null,null,null,null,null,{"$f":"IF('旅行命令上申書（国内旅行'!O43:AG43=\"\",\"\",'旅行命令上申書（国内旅行'!O43:AG43)","v":""}]
[null,null,null,null,null,null,{"$f":"IF(COUNTIF(O40,\"*科研費*\"),\"ﾌﾟﾛｼﾞｪｸﾄNo.(ｺｰﾄﾞ)\",\"\")","v":""},null,null,null,null,null,null,null,{"$f":"IF('旅行命令上申書（国内旅行'!O44:AG44=\"\",\"\",'旅行命令上申書（国内旅行'!O44:AG44)","v":""}]
[null,null,null,null,null,null,"備考",null,null,null,null,null,null,null,{"$f":"IF('旅行命令上申書（国内旅行'!O45:AG45=\"\",\"\",'旅行命令上申書（国内旅行'!O45:AG45)","v":""}]
["法人カード",null,null,null,null,null,null,null,"利用予定あり",null,null,null,null,null,null,null,"利用予定なし"]
[null,null,null,null,null,null,null,null,"航空機料金",null,null,null,null,null,null,null,"鉄道料金",null,null,null,null,null,null,null,{"$f":"'旅行命令上申書（国内旅行'!Y47","v":"その他交通費(　　　)"}]
[null,null,null,null,null,null,null,null,"宿泊料",null,null,null,null,null,null,null,"参加費",null,null,null,null,null,null,null,{"$f":"'旅行命令上申書（国内旅行'!Y48","v":"その他(　　　　　　)"}]
["参　加　費",null,null,null,null,null,null,null,"参加費の精算を希望する"]
[]
["仮 払 精 算\n※5",null,null,null,null,null,null,null,"仮払申請額から変更がある（追給あり）"]
[null,null,null,null,null,null,null,null,"仮払申請額から変更がある（戻入あり）"]
["備　　考※6",null,null,null,null,null,{"$f":"IF('旅行命令上申書（国内旅行'!G53=0,\"\",'旅行命令上申書（国内旅行'!G53)","v":""}]
[]
[]
[]
[]
["◆記入に関する注意事項"]
[]
["※1 最寄駅及び定期区間は「鉄道会社／駅名」又は「バス会社／バス停名」を記入してください。"]
["※2 旅行命令上申書で申請した内容から旅行期間・金額・財源等の変更があった場合に、詳細を記入してください。"]
["※3 旅行期間中の休日に業務を行う場合は、休日振替又は超過勤務の手続きが必要です。"]
["　「休日振替申請書」 又は 「超過勤務（休日）命令／夜間勤務申請簿」を必ず提出してください。ただし、休日における終日移動の場合は不要です。"]
["※4 前泊時は用務開始時刻（到着しなければならない時刻）、後泊時は用務終了時刻（現地を発てる時刻）を記入してください。"]
["※5 仮払いを希望する場合は、原則として、仮払い額（事前算出額）と仮払い精算額（事後の確定額）が同額となるようにしてください。"]
["※6 打切請求（一部支給）がある場合は、希望する支払総額又は調整額（例「調整額：- 500円」）を備考欄に記入してください。"]
["　　都市間を結ぶ高速バス等（空港連絡バス含む）を利用する場合は、備考欄に記入してください。"]
[]
[null,null,null,null,null,null,null,null,null,null,null,null,null,null,null,null,null,null,null,null,null,null,null,null,null,null,null,null,null,null,null,null,null,null,null,null,null,null,null,null,null,null,null,null,null,null,null,null,null,null,null,null,null,null,null,null,null,null,"2022年4月1日版"]